bitfinex-derivatives/quotes_SOLF0:USTF0_20241015
["timestamp","ask_amount","ask_price","bid_price","bid_amount"]
[1729000019311,39.98,155.91,155.74,39.98]
[1729000019312,39.98,155.86,155.74,39.98]
[1729000019609,8.16,155.85,155.75,1.17939105]
[1729000019814,8.16,155.85,155.74,1.17939105]
[1729000019815,39.98,155.84,155.74,1.17939105]
[1729000020005,39.98,155.84,155.73,10.8921]
[1729000020611,39.98,155.81,155.73,9.5607]
[1729000020917,39.98,155.81,155.73,1.4007]
[1729000021319,39.98,155.78,155.69,1.3497]
[1729000021616,39.98,155.78,155.67,1.3233]
[1729000021617,39.98,155.78,155.67,9.4833]
[1729000021813,8.16,155.8,155.67,8.16]
[1729000021814,39.98,155.76,155.67,8.16]
[1729000022007,8.16,155.75,155.66,1.4007]
[1729000022208,39.98,155.73,155.63,1.2971]
[1729000022414,39.98,155.71,155.58,1.3195]
[1729000022616,39.98,155.69,155.58,1.3195]
[1729000023123,8.16,155.68,155.58,1.3195]
[1729000023312,39.98,155.66,155.58,1.3195]
[1729000023512,39.98,155.66,155.56,8.16]
[1729000023716,39.98,155.63,155.53,2.6204]
[1729000023910,48.14,155.63,155.53,2.6204]
[1729000024114,48.14,155.63,155.55,3.2148]
[1729000024311,341.0,155.74,155.53,39.98]
[1729000024517,39.98,155.69,155.55,39.98]
[1729000024718,48.14,155.69,155.55,39.98]
[1729000025215,39.98,155.69,155.55,39.98]
[1729000025409,3.2117,155.71,155.55,39.98]
[1729000025716,39.98,155.67,155.53,39.98]
[1729000025920,8.16,155.66,155.53,39.98]
[1729000026612,39.98,155.64,155.52,1.2971]
[1729000026807,39.98,155.61,155.51,9.561]
[1729000027017,69.34,155.68,155.51,1.401]
[1729000027018,39.98,155.65,155.51,1.401]
[1729000027222,1.3498,155.67,155.56,39.98]
[1729000027223,8.16,155.64,155.56,39.98]
[1729000027424,1.3498,155.67,155.6,3.2136]
[1729000027621,8.16,155.66,155.56,39.98]
[1729000028724,8.16,155.66,155.61,3.2134]
[1729000028933,8.16,155.66,155.56,39.98]
[1729000029117,39.98,155.68,155.56,39.98]
[1729000029118,39.98,155.7,155.56,39.98]
[1729000029325,8.16,155.69,155.59,39.98]
[1729000029720,8.16,155.69,155.65,3.2126]
[1729000030123,8.16,155.69,155.59,39.98]
[1729000030316,8.16,155.69,155.62,3.2134]
[1729000030521,8.16,155.69,155.57,48.14]
[1729000030721,39.98,155.68,155.57,8.16]
[1729000030926,43.1922,155.68,155.61,3.2134]
[1729000031126,43.1922,155.68,155.57,8.16]
[1729000031430,39.98,155.65,155.52,69.36]
[1729000031626,8.16,155.64,155.51,9.561]
[1729000031929,8.16,155.64,155.57,3.2142]
[1729000032125,8.16,155.64,155.51,9.561]
[1729000032331,8.16,155.64,155.53,39.98]
[1729000032526,8.16,155.64,155.6,3.2138]
[1729000032732,8.16,155.64,155.53,39.98]
[1729000033030,8.16,155.64,155.51,9.561]
[1729000033220,8.16,155.63,155.57,3.2143]
[1729000034728,39.98,155.68,155.53,39.98]
[1729000035028,8.16,155.67,155.56,39.98]
[1729000035229,8.16,155.67,155.62,3.2132]
[1729000035531,8.16,155.67,155.56,39.98]
[1729000035733,39.98,155.65,155.57,3.2142]
[1729000035923,39.98,155.65,155.51,49.541]
[1729000036121,3.2132,155.64,155.52,1.1814148]
[1729000036326,39.98,155.65,155.51,49.541]
[1729000036530,39.98,155.65,155.53,1.18155678]
[1729000036729,43.1928,155.65,155.58,3.2142]
[1729000037434,39.98,155.65,155.51,49.541]
[1729000037630,8.16,155.66,155.53,39.98]
[1729000037825,384.23429365,155.77,155.59,39.98]
[1729000037826,39.98,155.7,155.59,39.98]
[1729000038030,77.5,155.71,155.66,3.2124]
[1729000038332,39.98,155.67,155.54,1.3387]
[1729000038632,8.16,155.66,155.6,3.2136]
[1729000038928,8.16,155.66,155.57,39.98]
[1729000039130,8.16,155.72,155.62,39.98]
[1729000039334,39.98,155.75,155.62,48.14]
[1729000039525,39.98,155.75,155.63,1.3937]
[1729000039831,39.98,155.72,155.63,1.3937]
[1729000040331,39.98,155.7,155.57,39.98]
[1729000040529,48.14,155.7,155.58,8.16]
[1729000040828,3.2122,155.68,155.61,3.2135]
[1729000041029,3.2122,155.68,155.57,8.16]
[1729000041030,39.98,155.67,155.56,1.399]
[1729000041234,3.2128,155.66,155.56,1.399]
[1729000041533,39.98,155.67,155.56,1.399]
[1729000041724,39.98,155.67,155.62,3.2132]
[1729000041930,39.98,155.65,155.56,1.399]
[1729000042935,39.98,155.62,155.56,1.399]
[1729000043527,8.16,155.77,155.58,39.98]
[1729000043729,39.98,155.72,155.58,39.98]
[1729000043930,39.98,155.72,155.6,39.98]
[1729000044130,3.2111,155.73,155.66,3.2124]
[1729000044340,39.98,155.69,155.56,9.559]
[1729000044731,48.14,155.69,155.57,1.18107101]
[1729000045041,51.352,155.69,155.62,3.2132]
[1729000045226,39.98,155.66,155.56,9.559]
[1729000045536,3.2122,155.68,155.62,3.2133]
[1729000045833,4.07,155.76,155.6,39.98]
[1729000045834,39.98,155.74,155.6,39.98]
[1729000046033,3.2111,155.73,155.64,3.2129]
[1729000046237,39.98,155.67,155.56,1.399]
[1729000046740,39.98,155.67,155.61,3.2134]
[1729000046930,48.14,155.69,155.57,39.98]
[1729000047130,39.98,155.69,155.57,48.14]
[1729000047337,51.351,155.74,155.6,39.98]
[1729000047636,48.14,155.74,155.6,39.98]
[1729000047843,3.2115,155.71,155.65,3.2127]
[1729000048040,39.98,155.72,155.65,3.2127]
[1729000048227,39.98,155.72,155.6,39.98]
[1729000048730,3.2118,155.7,155.63,3.213]
[1729000048927,39.98,155.72,155.6,39.98]
[1729000049337,51.351,155.74,155.6,39.98]
[1729000049735,48.14,155.74,155.6,39.98]
[1729000049929,3.2111,155.73,155.6,39.98]
[1729000050137,48.14,155.74,155.6,39.98]
[1729000050436,39.98,155.71,155.6,8.28]
[1729000051033,43.1916,155.71,155.64,3.213]
[1729000051430,39.98,155.69,155.57,39.98]
[1729000051633,43.1913,155.72,155.65,3.2126]
[1729000052433,39.98,155.72,155.6,39.98]
[1729000052630,39.98,155.72,155.64,3.2129]
[1729000053037,39.98,155.74,155.58,8.28]
[1729000053244,48.26,155.74,155.6,39.98]
[1729000053634,3.2113,155.73,155.66,3.2124]
[1729000053834,8.28,155.75,155.63,48.26]
[1729000054032,69.4,155.87,155.68,39.98]
[1729000054235,341.0,155.95,155.74,39.98]
[1729000054438,39.98,155.88,155.76,39.98]
[1729000054641,43.1882,155.88,155.8,3.2096]
[1729000054945,39.98,155.85,155.77,8.28]
[1729000055137,39.98,155.85,155.74,39.98]
[1729000055138,3.2089,155.84,155.76,3.2103]
[1729000055542,39.98,155.85,155.73,8.28]
[1729000055743,1.367,155.84,155.73,8.28]
[1729000056042,24.67,155.83,155.75,3.2105]
[1729000056248,24.67,155.83,155.72,8.28]
[1729000056446,1.367,155.84,155.72,8.28]
[1729000056447,24.67,155.81,155.72,8.28]
[1729000056947,3.2097,155.8,155.71,8.28]
[1729000057143,24.67,155.81,155.71,8.28]
[1729000057542,24.67,155.83,155.71,8.28]
[1729000057948,40.08,155.83,155.71,8.28]
[1729000058746,40.08,155.81,155.71,8.28]
[1729000059051,48.36,155.81,155.71,8.28]
[1729000059351,1.379,155.8,155.71,8.28]
[1729000059948,40.08,155.78,155.71,8.28]
[1729000060352,40.08,155.78,155.69,1.3447]
[1729000060859,40.08,155.78,155.68,8.28]
[1729000062560,42.7746,155.8,155.74,3.2108]
[1729000062958,41.459,155.8,155.68,48.36]
[1729000063163,41.459,155.8,155.69,1.18023303]
[1729000063359,40.08,155.78,155.65,48.36]
[1729000063560,1.379,155.8,155.67,40.08]
[1729000063965,1.379,155.8,155.68,1.18039422]
[1729000064564,1.379,155.8,155.75,3.2106]
[1729000065255,1.379,155.8,155.7,8.28]
[1729000065460,40.08,155.83,155.71,1.4009]
[1729000065667,40.08,155.83,155.71,2.8236]
[1729000065962,40.08,155.83,155.72,1.3732]
[1729000066162,9.647,155.84,155.73,40.08]
[1729000066367,46.0322,155.85,155.72,1.3732]
[1729000066368,1.4204,155.85,155.75,40.08]
[1729000066867,40.08,155.82,155.73,8.28]
[1729000067063,41.5004,155.85,155.73,8.28]
[1729000067265,40.08,155.87,155.75,40.08]
[1729000067960,44.2253,155.9,155.75,40.08]
[1729000068162,44.2253,155.9,155.84,3.2087]
[1729000068366,44.2253,155.9,155.78,8.28]
[1729000069064,40.08,155.88,155.78,8.28]
[1729000069968,40.08,155.85,155.78,8.28]
[1729000070368,40.08,155.88,155.74,8.28]
[1729000070369,40.08,155.82,155.74,8.28]
[1729000071258,40.08,155.82,155.72,1.3732]
[1729000071465,40.08,155.8,155.68,8.28]
[1729000072262,40.08,155.8,155.65,44.2379]
[1729000072567,43.2899,155.8,155.73,3.211]
[1729000072763,40.08,155.8,155.73,3.211]
[1729000072963,40.08,155.77,155.66,8.28]
[1729000073174,40.08,155.77,155.72,3.2112]
[1729000073365,40.08,155.77,155.66,8.28]
[1729000073759,3.2105,155.76,155.7,3.2115]
[1729000073966,40.08,155.77,155.66,8.28]
[1729000074468,40.08,155.77,155.71,3.2114]
[1729000074866,43.2904,155.77,155.65,52.5179]
[1729000075065,40.08,155.77,155.65,52.5179]
[1729000075571,43.2903,155.77,155.71,3.2115]
[1729000075869,8.28,155.76,155.65,44.2379]
[1729000076060,8.28,155.76,155.71,3.2114]
[1729000076264,8.28,155.76,155.65,44.2379]
[1729000077267,8.28,155.76,155.73,3.211]
[1729000078163,24.68,155.78,155.76,3.2104]
[1729000078370,24.68,155.78,155.67,6.4247]
[1729000078562,36.7756,155.81,155.69,24.68]
[1729000078764,36.7756,155.81,155.77,3.2103]
[1729000078966,36.7756,155.81,155.69,32.72]
[1729000079270,39.9852,155.81,155.74,3.2108]
[1729000079469,36.7756,155.81,155.69,32.72]
[1729000079671,28.7356,155.81,155.69,32.72]
[1729000079862,28.7356,155.81,155.72,3.2112]
[1729000080168,28.7356,155.81,155.69,32.72]
[1729000080969,24.68,155.76,155.71,3.2114]
[1729000081162,24.68,155.76,155.65,4.1579]
[1729000081368,24.68,155.76,155.65,2.7597]
[1729000081671,24.68,155.76,155.69,3.2119]
[1729000081672,3.2108,155.75,155.69,3.2119]
[1729000081873,24.68,155.73,155.69,3.2119]
[1729000082069,1.3514,155.72,155.69,3.2119]
[1729000082275,1.3514,155.72,155.63,32.72]
[1729000083482,24.68,155.76,155.63,32.72]
[1729000083768,1.3514,155.76,155.68,24.68]
[1729000083975,27.4297,155.81,155.68,32.72]
[1729000084169,35.4697,155.81,155.77,3.2101]
[1729000084366,10.7897,155.81,155.7,24.68]
[1729000084564,1.2977,155.82,155.73,24.68]
[1729000084768,1.2977,155.82,155.73,32.72]
[1729000085967,1.2977,155.82,155.73,48.11]
[1729000086472,1.2977,155.82,155.8,3.2096]
[1729000086675,1.2977,155.82,155.73,48.11]
[1729000086877,1.2977,155.82,155.73,8.04]
[1729000087279,1.2977,155.82,155.78,3.2099]
[1729000087569,1.2977,155.82,155.73,48.11]
[1729000088572,41.3677,155.82,155.73,8.04]
[1729000088873,40.07,155.8,155.69,9.3484]
[1729000089071,48.11,155.8,155.69,9.3484]
[1729000089475,1.3769,155.79,155.72,3.2113]
[1729000089681,41.3677,155.82,155.69,49.4184]
[1729000089978,2.6763,155.86,155.75,40.07]
[1729000090273,10.7163,155.86,155.75,40.07]
[1729000090779,10.7163,155.86,155.81,3.2093]
[1729000090982,10.7163,155.86,155.75,40.07]
[1729000090983,13.9248,155.86,155.75,40.07]
[1729000091183,13.9248,155.86,155.8,3.2096]
[1729000091379,10.7163,155.86,155.75,40.07]
[1729000091772,10.7163,155.86,155.8,3.2097]
[1729000092177,13.9249,155.86,155.8,3.2097]
[1729000092375,10.7163,155.86,155.8,3.2097]
[1729000092880,9.3394,155.86,155.75,40.07]
[1729000093075,1.2994,155.86,155.78,40.07]
[1729000093482,1.2994,155.86,155.83,3.209]
[1729000093784,1.2994,155.86,155.78,40.07]
[1729000093785,1.2994,155.86,155.75,40.07]
[1729000093986,1.2994,155.86,155.78,3.21]
[1729000094181,1.2994,155.86,155.75,40.07]
[1729000094783,1.2994,155.86,155.74,10.845]
[1729000094784,40.07,155.9,155.77,40.07]
[1729000094978,1.3429,155.89,155.78,1.3035]
[1729000095783,1.3429,155.89,155.85,3.2085]
[1729000095985,1.3429,155.89,155.79,8.04]
[1729000096480,40.07,155.88,155.79,8.04]
[1729000096879,40.07,155.88,155.83,3.2089]
[1729000097080,40.07,155.88,155.78,1.3035]
[1729000097487,40.07,155.88,155.81,3.2095]
[1729000097488,43.2781,155.88,155.81,3.2095]
[1729000097887,43.2781,155.88,155.78,1.3035]
[1729000098090,40.07,155.88,155.82,3.2091]
[1729000098288,40.07,155.88,155.78,1.3035]
[1729000098486,40.07,155.88,155.81,3.2095]
[1729000098688,40.07,155.88,155.78,1.3035]
[1729000099291,43.2781,155.88,155.82,3.2092]
[1729000099686,1.3429,155.89,155.78,41.3735]
[1729000099893,1.3429,155.89,155.8,40.07]
[1729000101094,1.3429,155.89,155.88,3.208]
[1729000101288,1.329,155.91,155.83,40.07]
[1729000101697,1.329,155.91,155.89,3.2078]
[1729000102890,8.04,155.93,155.83,40.07]
[1729000103093,48.11,156.0,155.88,40.07]
[1729000103287,1.3139,156.06,155.93,40.07]
[1729000103484,4.1175,156.06,155.95,40.07]
[1729000103891,4.1175,156.06,156.03,3.2049]
[1729000104189,4.1175,156.06,155.98,40.07]
[1729000104490,1.4198,156.06,155.98,40.07]
[1729000104697,42.7783,156.12,156.01,40.07]
[1729000104997,2.8252,156.12,156.04,3.2047]
[1729000105191,1.4198,156.12,156.01,40.07]
[1729000105696,1.4198,156.12,156.07,3.204]
[1729000106085,1.4198,156.12,156.01,40.07]
[1729000106287,40.07,156.15,156.03,40.07]
[1729000106789,40.07,156.15,156.04,9.3777]
[1729000107296,40.07,156.15,156.04,8.02]
[1729000107896,27.8026,156.15,156.06,3.2042]
[1729000108092,27.8026,156.15,156.04,8.02]
[1729000108293,24.6,156.15,156.04,8.02]
[1729000109293,24.6,156.15,156.09,3.2036]
[1729000109487,1.3492,156.16,156.05,24.6]
[1729000109693,1.3492,156.16,156.06,1.3135]
[1729000110591,69.3,156.23,156.06,1.3135]
[1729000110592,69.24,156.33,156.09,24.6]
[1729000110788,2.7532,156.3,156.16,24.6]
[1729000110989,2.7532,156.3,156.19,24.6]
[1729000111192,24.6,156.25,156.15,7.72]
[1729000111394,24.6,156.25,156.19,3.2017]
[1729000111588,24.6,156.28,156.17,24.6]
[1729000111793,2.7532,156.3,156.17,24.6]
[1729000111997,3.1998,156.28,156.17,24.6]
[1729000112195,2.7532,156.3,156.17,24.6]
[1729000112593,24.6,156.28,156.17,24.6]
[1729000112789,24.6,156.23,156.12,24.6]
[1729000113096,24.6,156.24,156.13,1.17670427]
[1729000113290,24.6,156.24,156.13,24.6]
[1729000113489,7.72,156.27,156.13,24.6]
[1729000113490,32.32,156.27,156.13,24.6]
[1729000113892,39.97,156.26,156.14,39.97]
[1729000114096,7.72,156.27,156.22,3.2009]
[1729000114293,7.72,156.27,156.18,47.69]
[1729000114697,7.72,156.27,156.21,3.2011]
[1729000114897,7.72,156.27,156.17,7.72]
[1729000115093,1.3878,156.3,156.19,39.97]
[1729000115401,1.3878,156.3,156.2,1.3493]
[1729000116490,1.3878,156.3,156.25,3.2004]
[1729000116897,1.3878,156.3,156.26,3.2001]
[1729000117096,1.4198,156.35,156.24,39.97]
[1729000117292,10.4466,156.35,156.24,39.97]
[1729000117502,2.7266,156.35,156.29,3.1995]
[1729000117697,2.7266,156.35,156.24,39.97]
[1729000117893,45.8951,156.35,156.27,3.1999]
[1729000118096,42.6966,156.35,156.24,47.69]
[1729000118493,42.6966,156.35,156.25,3.2004]
[1729000118700,42.6966,156.35,156.24,39.97]
[1729000118701,42.6966,156.35,156.23,7.72]
[1729000118910,39.97,156.33,156.21,1.3282]
[1729000119206,2.7266,156.35,156.21,1.3282]
[1729000119207,39.97,156.3,156.21,1.3282]
[1729000119705,3.1998,156.29,156.21,1.3282]
[1729000120400,3.1998,156.28,156.21,1.3282]
[1729000120606,39.97,156.28,156.2,1.3493]
[1729000121000,43.1699,156.28,156.2,4.5506]
[1729000121302,7.72,156.31,156.2,4.5506]
[1729000121303,7.72,156.31,156.2,1.3493]
[1729000121694,7.72,156.31,156.22,39.97]
[1729000121900,42.6966,156.35,156.24,39.97]
[1729000122105,42.6966,156.35,156.22,39.97]
[1729000122106,2.7266,156.35,156.3,3.1994]
[1729000122312,1.3068,156.35,156.27,39.97]
[1729000122501,1.3068,156.35,156.24,39.97]
[1729000122804,1.3068,156.35,156.22,39.97]
[1729000123011,1.3068,156.35,156.25,39.97]
[1729000123313,3.1987,156.34,156.27,3.1999]
[1729000123511,1.3068,156.35,156.22,39.97]
[1729000123512,41.2768,156.35,156.22,39.97]
[1729000123705,3.1989,156.33,156.26,3.2001]
[1729000124208,3.1988,156.34,156.27,3.2]
[1729000124508,1.3068,156.35,156.22,39.97]
[1729000124806,0.12518,156.36,156.26,39.97]
[1729000125009,0.12518,156.36,156.28,39.97]
[1729000125198,0.12518,156.36,156.31,3.1991]
[1729000125709,0.12518,156.36,156.29,1.3776]
[1729000126007,0.12518,156.36,156.31,39.97]
[1729000126505,49.59775643,156.52,156.33,39.97]
[1729000126506,2.6897,156.49,156.33,39.97]
[1729000126703,47.69,156.48,156.36,39.97]
[1729000126900,47.69,156.48,156.37,2.6842]
[1729000127103,39.97,156.46,156.37,2.6842]
[1729000127303,39.97,156.44,156.31,47.69]
[1729000127509,39.97,156.44,156.35,3.1983]
[1729000127805,1.3711,156.49,156.36,7.72]
[1729000128007,74.83380492,156.58,156.42,3.1968]
[1729000128008,50.8855,156.5,156.42,3.1968]
[1729000128210,50.8855,156.5,156.36,7.72]
[1729000128211,7.72,156.5,156.36,7.72]
[1729000128403,39.97,156.48,156.36,7.72]
[1729000128599,7.72,156.5,156.36,7.72]
[1729000128806,39.97,156.48,156.36,7.72]
[1729000129118,39.97,156.51,156.45,3.1962]
[1729000129412,39.97,156.48,156.36,47.69]
[1729000130212,39.97,156.48,156.43,3.1967]
[1729000130410,39.97,156.48,156.36,47.69]
[1729000130909,39.97,156.45,156.36,7.72]
[1729000131612,39.97,156.43,156.32,2.6842]
[1729000131908,39.97,156.43,156.34,1.3342]
[1729000132114,39.97,156.43,156.36,3.198]
[1729000132310,39.97,156.43,156.34,1.3342]
[1729000133007,39.97,156.43,156.38,3.1976]
[1729000133208,39.97,156.43,156.34,1.3342]
[1729000133407,39.97,156.46,156.34,1.3342]
[1729000133707,39.97,156.49,156.35,39.97]
[1729000134106,39.97,156.47,156.35,39.97]
[1729000134607,39.97,156.49,156.42,3.1968]
[1729000134803,39.97,156.51,156.4,39.97]
[1729000135110,7.72,156.54,156.43,39.97]
[1729000135111,39.97,156.54,156.43,39.97]
[1729000135412,39.97,156.56,156.44,9.0847]
[1729000135613,39.97,156.56,156.45,39.97]
[1729000136106,39.97,156.56,156.44,9.0847]
[1729000136308,7.72,156.62,156.54,3.1945]
[1729000136504,39.97,156.61,156.5,7.72]
[1729000136713,39.97,156.61,156.51,2.6371]
[1729000136909,41.3652,156.67,156.51,2.6371]
[1729000136910,47.67,156.64,156.51,42.6071]
[1729000137213,39.97,156.64,156.51,42.6071]
[1729000137413,39.97,156.64,156.57,3.1937]
[1729000137601,39.97,156.64,156.51,42.6071]
[1729000138506,39.97,156.64,156.51,50.5071]
[1729000139413,39.97,156.64,156.52,1.17402783]
[1729000139814,39.97,156.67,156.54,39.97]
[1729000140015,39.97,156.67,156.59,3.1933]
[1729000140212,39.97,156.67,156.54,39.97]
[1729000140412,39.97,156.67,156.6,3.1931]
[1729000140613,1.343,156.68,156.57,39.97]
[1729000140809,6.668157,156.82,156.67,39.97]
[1729000141119,6.668157,156.82,156.59,39.97]
[1729000141120,39.97,156.77,156.68,1.3947]
[1729000141417,39.97,156.8,156.69,3.1914]
[1729000141614,39.97,156.8,156.68,41.3647]
[1729000142012,39.97,156.82,156.73,3.1904]
[1729000142213,1.29,156.83,156.73,39.97]
[1729000142615,4.4786,156.83,156.73,39.97]
[1729000142815,1.29,156.83,156.73,39.97]
[1729000143016,1.29,156.83,156.7,39.97]
[1729000143223,39.97,156.82,156.7,39.97]
[1729000143418,39.97,156.75,156.62,39.97]
[1729000143618,3.1904,156.74,156.62,39.97]
[1729000143917,39.97,156.75,156.62,39.97]
[1729000144118,39.97,156.75,156.61,1.3529]
[1729000144119,3.1909,156.72,156.61,1.3529]
[1729000144323,1.3185,156.74,156.61,1.3529]
[1729000144519,41.2885,156.74,156.61,1.3529]
[1729000144917,41.2885,156.74,156.64,3.1923]
[1729000145215,41.2885,156.74,156.61,1.3529]
[1729000145421,41.2885,156.74,156.65,3.1923]
[1729000145611,1.3185,156.74,156.61,1.3529]
[1729000145820,1.3185,156.74,156.61,2.7581]
[1729000146023,1.3185,156.74,156.62,8.78]
[1729000146410,39.97,156.72,156.61,2.7581]
[1729000146613,3.1911,156.71,156.61,4.5458]
[1729000146815,39.97,156.72,156.61,1.3529]
[1729000147214,39.97,156.72,156.62,3.1927]
[1729000147618,39.97,156.72,156.61,1.3529]
[1729000148016,68.98,156.93,156.7,39.97]
[1729000148221,1.3715,156.82,156.74,3.1904]
[1729000148421,39.97,156.79,156.75,1.17235132]
[1729000148726,39.97,156.77,156.67,3.1917]
[1729000148917,39.97,156.77,156.64,3.22642072]
[1729000149220,43.11916794,156.77,156.63,1.3351]
[1729000149423,39.97,156.77,156.63,1.3351]
[1729000149725,39.97,156.77,156.65,39.97]
[1729000149919,39.97,156.79,156.7,3.1912]
[1729000150120,39.97,156.79,156.65,39.97]
[1729000150518,9.72,156.8,156.65,39.97]
[1729000150820,49.69,156.8,156.67,39.97]
[1729000151720,10.1,156.81,156.7,39.97]
[1729000152119,10.1,156.81,156.71,3.1909]
[1729000152331,10.1,156.81,156.7,39.97]
[1729000152620,39.97,156.78,156.63,1.3351]
[1729000152820,39.97,156.73,156.59,39.97]
[1729000153123,14.0789,156.72,156.59,39.97]
[1729000153423,14.0789,156.72,156.62,39.97]
[1729000153927,14.0789,156.72,156.59,39.97]
[1729000154617,39.97,156.7,156.55,39.97]
[1729000154920,39.97,156.7,156.58,39.97]
[1729000155325,39.97,156.7,156.56,39.97]
[1729000155622,39.97,156.7,156.54,1.3388]
[1729000155623,3.1924,156.65,156.57,3.1939]
[1729000155924,68.96,156.71,156.58,39.97]
[1729000155925,10.92,156.7,156.58,39.97]
[1729000156116,10.92,156.7,156.63,3.1926]
[1729000156324,10.92,156.7,156.61,39.97]
[1729000156824,68.96,156.71,156.61,39.97]
[1729000157026,39.97,156.79,156.66,39.97]
[1729000157221,39.97,156.79,156.62,3.98637348]
[1729000157222,39.97,156.77,156.64,39.97]
[1729000157821,3.1904,156.74,156.67,3.1917]
[1729000158022,1.3581,156.73,156.63,1.3734]
[1729000158823,39.97,156.77,156.63,1.3734]
[1729000159024,39.97,156.77,156.71,3.1909]
[1729000159734,15.14647951,156.77,156.65,39.97]
[1729000160525,15.14647951,156.77,156.63,1.3734]
[1729000160927,10.92,156.78,156.71,3.1909]
[1729000161228,39.97,156.74,156.63,1.3734]
[1729000161430,1.404,156.73,156.63,1.3734]
[1729000161734,1.404,156.73,156.67,3.1918]
[1729000161924,1.404,156.73,156.63,1.3734]
[1729000162427,41.374,156.73,156.63,1.3734]
[1729000163030,3.1909,156.72,156.64,3.1923]
[1729000163328,41.374,156.73,156.63,1.3734]
[1729000163725,39.97,156.71,156.64,3.1924]
[1729000163927,39.97,156.71,156.59,39.97]
[1729000164221,1.4036,156.7,156.59,39.97]
[1729000164831,10.92,156.72,156.59,39.97]
[1729000165227,39.97,156.76,156.64,39.97]
[1729000165427,39.97,156.76,156.65,4.0229]
[1729000165622,39.97,156.76,156.68,3.1916]
[1729000165829,1.3501,156.78,156.67,39.97]
[1729000166132,39.97,156.79,156.67,39.97]
[1729000166329,39.97,156.91,156.65,4.0229]
[1729000166330,39.97,156.82,156.7,39.97]
[1729000166631,3.20441891,156.85,156.65,4.0229]
[1729000166632,39.97,156.79,156.67,39.97]
[1729000166926,39.97,156.74,156.65,4.0229]
[1729000167432,39.97,156.74,156.69,3.1913]
[1729000167629,39.97,156.76,156.65,4.0229]
[1729000168127,39.97,156.76,156.69,3.1913]
[1729000168330,39.97,156.76,156.65,4.0229]
[1729000168636,39.97,156.76,156.71,3.191]
[1729000169332,39.97,156.74,156.65,4.0229]
[1729000169531,39.97,156.76,156.65,4.0229]
[1729000169931,39.97,156.76,156.69,3.1913]
[1729000170122,39.97,156.74,156.6,11.36]